bitfinex/quotes_ETHUSD_20250319
["timestamp","ask_amount","ask_price","bid_price","bid_amount"]
[1742425743799,3.89719,2052.8,2052.4,7.755]
[1742425744081,5.99,2053.3,2052.7,4.56078628]
[1742425744288,3.89664,2053.1,2052.7,4.56078628]
[1742425744457,3.89638,2053.2,2052.7,6.91565959]
[1742425744657,3.89622,2053.3,2052.9,0.55]
[1742425744883,3.89622,2053.3,2053.1,3.0]
[1742425745381,3.89635,2053.2,2053.1,3.0]
[1742425746799,3.89635,2053.2,2052.8,0.7882]
[1742425746800,3.89692,2052.9,2052.8,0.7882]
[1742425747104,3.89711,2052.8,2052.7,10.815]
[1742425747255,3.89711,2052.8,2052.7,4.755]
[1742425747458,3.89692,2052.9,2052.5,5.5432]
[1742425747785,3.89712,2052.8,2052.6,3.55]
[1742425748157,3.8973,2052.7,2052.6,3.0]
[1742425748870,3.89716,2052.8,2052.6,3.0]
[1742425749272,7.79439,2052.8,2052.6,3.0]
[1742425749571,3.8973,2052.7,2052.5,0.7882]
[1742425749770,3.8973,2052.7,2052.6,7.755]
[1742425750089,3.8973,2052.7,2052.4,4.755]
[1742425750090,3.89769,2052.5,2052.4,4.755]
[1742425750275,3.89769,2052.5,2052.4,7.755]
[1742425750658,3.89769,2052.5,2052.4,3.0]
[1742425750854,3.89769,2052.5,2052.4,7.755]
[1742425751599,3.89787,2052.4,2052.3,26.5386]
[1742425751786,3.89787,2052.4,2052.3,25.763]
[1742425751961,3.89787,2052.4,2052.3,28.763]
[1742425752163,3.89787,2052.4,2052.3,3.0]
[1742425752663,3.89806,2052.3,2052.2,4.755]
[1742425752985,3.89806,2052.3,2052.2,7.755]
[1742425754467,3.89791,2052.4,2052.3,3.0]
[1742425755701,3.89737,2052.7,2052.3,3.55]
[1742425755902,3.89719,2052.8,2052.3,3.55]
[1742425755903,3.89711,2052.8,2052.4,0.55]
[1742425756127,3.89711,2052.8,2052.5,0.7857]
[1742425756290,7.79439,2052.8,2052.6,4.755]
[1742425756490,3.8973,2052.7,2052.6,7.755]
[1742425757491,5.46751363,2052.7,2052.6,7.755]
[1742425758263,3.8971,2052.9,2052.7,3.0]
[1742425758436,3.89674,2053.0,2052.7,3.0]
[1742425758766,3.89701,2052.9,2052.7,3.0]
[1742425759730,3.89674,2053.0,2052.7,3.0]
[1742425759731,3.89676,2053.0,2052.7,3.0]
[1742425760761,3.89654,2053.1,2052.8,0.7975]
[1742425761254,7.79324,2053.1,2052.8,0.7975]
[1742425761557,7.79317,2053.1,2052.8,0.7975]
[1742425762366,4.01078628,2053.2,2052.8,0.7975]
[1742425762540,3.89692,2052.9,2052.7,3.0]
[1742425763492,3.89655,2053.1,2052.7,3.0]
[1742425763638,3.89621,2053.3,2052.8,1.3329]
[1742425763971,3.89621,2053.3,2052.8,7.3929]
[1742425764177,3.89621,2053.3,2053.0,0.55]
[1742425764375,3.89621,2053.3,2053.1,3.0]
[1742425765376,3.89635,2053.2,2053.1,3.0]
[1742425766778,7.90695628,2053.3,2053.1,3.0]
[1742425767080,3.89635,2053.2,2053.1,3.0]
[1742425767581,3.89568,2053.6,2053.3,0.55]
[1742425767885,3.89568,2053.6,2053.4,4.754]
[1742425768243,3.89503,2053.9,2053.5,3.0]
[1742425768474,3.89514,2053.9,2053.6,0.8103]
[1742425768741,4.76576263,2053.9,2053.6,0.8103]
[1742425768941,3.89466,2054.1,2053.7,0.55]
[1742425769253,3.89466,2054.1,2053.9,3.0]
[1742425770152,7.90561628,2054.0,2053.9,3.0]
[1742425773091,4.69496,2054.1,2053.9,3.0]
[1742425773092,3.89466,2054.1,2053.9,3.0]
[1742425773691,3.89466,2054.1,2054.0,7.753]
[1742425774384,3.89449,2054.2,2054.0,7.753]
[1742425774785,3.89464,2054.1,2054.0,7.753]
[1742425775391,3.89426,2054.4,2054.0,8.60426]
[1742425775579,3.89389,2054.5,2054.1,3.8288]
[1742425775894,3.89417,2054.4,2054.2,0.55]
[1742425776302,7.90433628,2054.7,2054.2,0.55]
[1742425776598,3.89373,2054.6,2054.2,2.154306]
[1742425776999,7.90395628,2054.9,2054.4,0.55]
[1742425777199,3.89343,2054.8,2054.6,3.0]
[1742425777489,3.89317,2054.9,2054.7,1.37]
[1742425779486,5.99,2055.8,2054.7,7.43]
[1742425779692,3.89189,2055.6,2055.1,3.55]
[1742425779994,0.7992,2056.0,2055.3,3.82]
[1742425779995,3.89218,2055.4,2055.3,3.82]
[1742425780497,3.89218,2055.4,2055.3,3.0]
[1742425782406,3.89256,2055.2,2055.1,9.8875596]
[1742425782570,3.89256,2055.2,2055.1,13.8175596]
[1742425784793,3.89256,2055.2,2055.1,7.7575596]
[1742425786319,3.89256,2055.2,2055.1,3.0075596]
[1742425786611,3.89256,2055.2,2055.1,7.7565596]
[1742425787297,4.49536517,2055.2,2055.1,3.0075596]
[1742425787622,5.29456517,2055.2,2055.1,3.0075596]
[1742425788417,4.69176,2055.2,2055.1,3.0075596]
[1742425788604,3.89239,2055.3,2055.2,3.0]
[1742425788810,3.89201,2055.5,2055.3,0.55]
[1742425789005,3.89201,2055.5,2055.4,28.744]
[1742425789212,3.89201,2055.5,2055.4,32.99758467]
[1742425789884,3.89123,2055.9,2055.5,3.0]
[1742425790084,3.89144,2055.8,2055.6,4.749]
[1742425790311,3.89161,2055.7,2055.6,7.749]
[1742425790519,3.89143,2055.8,2055.6,8.60026]
[1742425790823,3.89143,2055.8,2055.7,3.0]
[1742425791910,4.68483,2055.8,2055.7,3.0]
[1742425792490,3.89143,2055.8,2055.7,3.0]
[1742425794133,3.89161,2055.7,2055.6,4.749]
[1742425801133,3.89161,2055.7,2055.6,7.749]
[1742425801535,3.89161,2055.7,2055.4,25.744]
[1742425801536,3.89199,2055.5,2055.4,25.744]
[1742425801740,7.89942486,2055.5,2055.4,33.491]
[1742425802379,7.89942486,2055.5,2055.4,25.744]
[1742425802677,3.89199,2055.5,2055.4,25.744]
[1742425803579,3.89185,2055.6,2055.4,25.744]
[1742425803737,3.89199,2055.5,2055.4,6.0491]
[1742425803941,3.89199,2055.5,2055.4,3.0]
[1742425805741,3.89218,2055.4,2055.3,4.747]
[1742425805981,3.89218,2055.4,2055.3,7.747]
[1742425808885,3.89218,2055.4,2055.3,3.0]
[1742425809444,4.68998,2055.4,2055.3,3.0]
[1742425809644,6.38137912,2055.4,2055.3,3.0]
[1742425809972,3.89237,2055.3,2055.2,25.736]
[1742425810174,3.89256,2055.2,2055.1,0.0075596]
[1742425810989,4.69036,2055.2,2055.1,0.0075596]
[1742425811142,4.69036,2055.2,2055.1,9.6e-06]
[1742425811347,6.55100803,2055.2,2055.1,9.6e-06]
[1742425816377,10.99117924,2055.2,2055.1,9.6e-06]
[1742425818986,3.89389,2054.5,2054.4,0.8063]
[1742425819187,3.89408,2054.4,2054.3,7.747]
[1742425819560,3.89408,2054.4,2054.3,11.2338]
[1742425820902,3.89395,2054.5,2054.3,11.2338]
[1742425821108,4.44017121,2055.0,2054.3,11.2338]
[1742425821109,3.89384,2054.6,2054.4,0.7979]
[1742425821405,3.89389,2054.5,2054.4,0.7979]
[1742425822873,3.89389,2054.5,2054.4,5.5459]
[1742425823981,3.89389,2054.5,2054.4,4.748]
[1742425825203,3.89408,2054.4,2054.3,3.0]
[1742425825409,3.89408,2054.4,2054.3,7.748]
[1742425825615,3.89408,2054.4,2054.2,25.741]
[1742425825843,3.89408,2054.4,2054.1,0.7572]
[1742425825844,3.89483,2054.0,2053.9,0.8114]
[1742425825973,3.89521,2053.8,2053.7,0.8114]
[1742425826167,3.89521,2053.8,2053.7,8.5594]
[1742425826419,3.89521,2053.8,2053.7,5.5594]
[1742425826619,3.89521,2053.8,2053.7,4.748]
[1742425826913,3.89521,2053.8,2053.7,7.748]
[1742425827211,3.89521,2053.8,2053.7,11.17834]
[1742425827386,3.89504,2053.9,2053.8,0.7611]
[1742425828318,3.89521,2053.8,2053.7,7.748]
[1742425829817,3.8954,2053.7,2053.6,25.744]
[1742425829981,3.8954,2053.7,2053.6,30.492]
[1742425830172,3.8954,2053.7,2053.6,33.492]
[1742425830914,4.7029,2053.7,2053.6,25.744]
[1742425831097,3.89597,2053.4,2053.3,4.748]
[1742425831300,3.89597,2053.4,2053.3,7.748]
[1742425831672,3.89635,2053.2,2053.1,0.7948]
[1742425831869,3.89635,2053.2,2053.1,5.5428]
[1742425832089,3.89635,2053.2,2053.1,0.7948]
[1742425832317,3.89635,2053.2,2053.1,5.5428]
[1742425832476,3.89635,2053.2,2053.1,8.5428]
[1742425833921,3.89635,2053.2,2053.1,3.0]
[1742425834105,9.47828534,2053.2,2053.1,3.0]
[1742425834421,3.89654,2053.1,2053.0,30.497]
[1742425834636,3.89654,2053.1,2053.0,33.497]
[1742425834940,9.47828534,2053.2,2052.6,25.755]
[1742425834941,3.89736,2052.7,2052.6,25.755]
[1742425835106,3.89736,2052.7,2052.6,33.504]
[1742425836210,3.89711,2052.8,2052.6,36.93197]
[1742425837832,7.79432,2052.8,2052.6,36.93197]
[1742425838005,3.8973,2052.7,2052.6,33.504]
[1742425838351,3.8973,2052.7,2052.6,34.054]
[1742425838998,7.7944,2052.8,2052.6,34.054]
[1742425839200,3.89711,2052.8,2052.6,34.054]
[1742425839398,3.89711,2052.8,2052.6,29.305]
[1742425839613,3.8973,2052.7,2052.6,25.755]
[1742425840048,3.89711,2052.8,2052.7,3.0]
[1742425840872,3.8973,2052.7,2052.6,25.755]
[1742425844572,3.89749,2052.6,2052.5,7.75]
[1742425844867,3.8973,2052.7,2052.5,7.75]
[1742425844868,3.8973,2052.7,2052.5,8.90145]
[1742425845075,10.79367817,2053.7,2052.7,0.8039]
[1742425845277,3.89711,2052.8,2052.7,1.3539]
[1742425845427,3.89697,2052.9,2052.7,1.3539]
[1742425845917,3.89683,2053.0,2052.7,0.8039]
[1742425846072,3.89683,2053.0,2052.7,1.774435]
[1742425846442,3.89644,2053.2,2052.8,0.55]
[1742425846658,3.89644,2053.2,2053.0,3.0]
[1742425847679,3.89579,2053.5,2053.1,0.55]
[1742425847979,3.89579,2053.5,2053.2,0.7951]
[1742425848149,3.89564,2053.6,2053.3,3.0]
[1742425848345,7.79091,2053.7,2053.3,8.59156892]
[1742425848539,3.89529,2053.8,2053.5,0.8152]
[1742425848737,3.89535,2053.8,2053.5,0.8152]
[1742425849133,7.79065,2053.8,2053.5,0.8152]
[1742425849369,7.79065,2053.8,2053.5,1.81087689]
[1742425849573,3.8953,2053.8,2053.5,1.81087689]
[1742425850093,3.89522,2053.8,2053.6,0.55]
[1742425850285,3.89522,2053.8,2053.7,7.751]
[1742425851266,3.89522,2053.8,2053.3,4.3272]
[1742425851267,3.89579,2053.5,2053.3,4.3272]
[1742425851484,3.89579,2053.5,2053.4,4.75]
[1742425852413,3.89562,2053.6,2053.5,3.0]
[1742425852570,3.89539,2053.8,2053.5,3.7772]
[1742425852901,7.79113,2053.7,2053.5,3.7772]
[1742425853300,3.89555,2053.7,2053.5,3.7772]
[1742425853486,3.89555,2053.7,2053.5,4.68492]
[1742425853694,3.89541,2053.7,2053.5,4.68492]
[1742425854375,3.89525,2053.8,2053.5,4.68492]
[1742425854705,3.89511,2053.9,2053.6,0.55]
[1742425855283,3.89486,2054.0,2053.6,0.55]
[1742425855486,3.89486,2054.0,2053.6,2.54895383]
[1742425856908,3.89506,2053.9,2053.6,2.54895383]
[1742425857224,3.89524,2053.8,2053.6,2.54895383]
[1742425857879,3.89506,2053.9,2053.6,2.54895383]
[1742425858093,3.89484,2054.0,2053.6,2.54895383]
[1742425858303,7.90669122,2054.1,2053.7,0.72338738]
[1742425858674,0.7537,2054.8,2054.0,0.55]
[1742425858912,3.89416,2054.4,2054.0,0.55]
[1742425859079,3.89376,2054.6,2054.2,0.55]
[1742425859402,3.8939,2054.5,2054.4,3.0]
[1742425861809,3.8939,2054.5,2054.1,3.7637]
[1742425861810,3.89427,2054.3,2054.1,3.7637]
[1742425862009,3.89427,2054.3,2054.2,7.749]
[1742425862615,3.87427,2054.3,2054.2,7.749]
[1742425863215,3.89483,2054.0,2053.9,0.96445263]
[1742425863387,7.90672122,2054.0,2053.9,4.749]
[1742425863592,3.89483,2054.0,2053.9,4.749]
[1742425863926,3.89483,2054.0,2053.9,7.749]
[1742425864719,3.89483,2054.0,2053.6,0.769]
[1742425864720,3.8954,2053.7,2053.6,0.769]
[1742425864885,3.8954,2053.7,2053.6,9.068]
[1742425865198,3.8954,2053.7,2053.6,7.749]
[1742425865704,4.66072,2054.3,2053.7,3.8279]
[1742425865886,3.89461,2054.2,2053.8,1.7563724]
[1742425866218,3.89465,2054.1,2053.8,1.7563724]
[1742425866392,3.89449,2054.2,2054.0,0.55]
[1742425866592,3.89449,2054.2,2054.1,3.0]
[1742425868693,7.90638122,2054.2,2054.1,3.0]
[1742425868897,9.55387534,2054.2,2054.1,3.0]
[1742425869121,3.89521,2053.8,2053.7,4.306]
[1742425869300,3.89521,2053.8,2053.7,8.504]
[1742425870721,3.89521,2053.8,2053.7,7.748]
[1742425872792,3.89521,2053.8,2053.7,8.298]
[1742425873631,3.89486,2054.0,2053.8,0.55]
[1742425873828,3.89502,2053.9,2053.8,0.55]
[1742425875136,3.89521,2053.8,2053.7,7.748]
[1742425877432,3.89559,2053.6,2053.5,28.754]
[1742425877635,3.89559,2053.6,2053.5,33.502]
[1742425878801,3.89559,2053.6,2053.5,30.502]
[1742425879308,3.89559,2053.6,2053.5,33.502]
[1742425879500,3.89559,2053.6,2053.5,28.754]
[1742425881314,5.50893141,2053.6,2053.5,25.754]
[1742425881616,3.89635,2053.2,2053.1,28.755]
[1742425881821,3.89635,2053.2,2053.1,29.305]
[1742425882122,3.89635,2053.2,2053.1,25.755]
[1742425882512,3.89692,2052.9,2052.8,4.748]
[1742425882806,3.8973,2052.7,2052.6,28.755]
[1742425883160,3.89787,2052.4,2052.2,6.8468]
[1742425883305,3.89787,2052.4,2052.3,30.505]
[1742425883810,3.89773,2052.5,2052.4,3.0]
[1742425884323,3.89773,2052.5,2052.4,3.55]
[1742425884505,7.79517,2052.6,2052.4,3.55]
[1742425884703,3.89768,2052.5,2052.4,0.55]
[1742425884941,3.89787,2052.4,2052.3,33.505]
[1742425885646,3.89787,2052.4,2052.3,34.055]
[1742425886937,3.89768,2052.5,2052.4,3.0]
[1742425887139,0.8239,2052.8,2052.4,3.0]
[1742425887350,3.89754,2052.6,2052.4,3.0]
[1742425887555,3.89768,2052.5,2052.4,3.0]
[1742425888155,3.89754,2052.6,2052.4,7.09018]
[1742425889355,3.89768,2052.5,2052.4,3.0]
[1742425890132,3.89754,2052.6,2052.4,3.0]
[1742425890332,3.89733,2052.7,2052.4,3.04871948]
[1742425890523,3.89733,2052.7,2052.4,3.0]
[1742425890933,3.89753,2052.6,2052.4,3.0]
[1742425891138,3.89768,2052.5,2052.4,3.0]
[1742425892254,3.89793,2052.4,2052.3,3.0]
[1742425895030,9.56512165,2052.4,2052.3,3.0]
[1742425896128,3.89806,2052.3,2052.2,3.0]
[1742425896323,9.56512165,2052.4,2052.2,3.0]
[1742425896629,7.79598,2052.4,2052.2,3.0]
[1742425896830,3.89806,2052.3,2052.2,3.0]
[1742425897461,3.89806,2052.3,2052.2,2.450412]
[1742425898034,3.89806,2052.3,2052.2,3.208812]
[1742425898231,4.66171,2052.6,2052.2,3.208812]
[1742425898562,3.89758,2052.6,2052.3,0.55]
[1742425898859,7.79525,2052.6,2052.3,0.55]
[1742425899160,3.8977,2052.5,2052.3,0.55]
[1742425899667,3.89741,2052.7,2052.3,4.44794]
[1742425899873,3.89741,2052.7,2052.4,0.04871853]
[1742425900034,13.78439,2052.8,2052.5,0.7584]
[1742425900359,7.79489,2052.7,2052.5,5.5084]
[1742425900560,3.89749,2052.6,2052.5,7.75]
[1742425906593,3.89749,2052.6,2052.5,3.0]
[1742425911196,3.89806,2052.3,2052.2,7.75]
[1742425917271,3.89794,2052.4,2052.3,3.55]
[1742425918078,3.89771,2052.5,2052.3,7.7426]
[1742425918283,3.89773,2052.5,2052.4,0.55]
[1742425918484,3.8975,2052.6,2052.4,0.55]
[1742425918684,3.8973,2052.8,2052.4,0.59871767]
[1742425918880,3.89694,2052.9,2052.6,4.3346]
[1742425919201,3.89712,2052.8,2052.7,3.55]
[1742425920296,3.89712,2052.8,2052.6,6.74759]
[1742425920297,3.8973,2052.7,2052.6,8.3]
[1742425922298,3.8973,2052.7,2052.6,7.75]
[1742425924707,3.8973,2052.7,2052.6,4.75]
[1742425928598,3.89715,2052.8,2052.7,0.55]
[1742425928778,3.8973,2052.7,2052.6,8.3]
[1742425932008,3.8973,2052.7,2052.6,3.0]
[1742425932212,3.8973,2052.7,2052.6,7.749]
[1742425933011,3.8973,2052.7,2052.6,3.0]
[1742425933205,5.149167,2052.7,2052.6,3.0]
[1742425933885,5.149167,2052.7,2052.2,26.321]
[1742425933886,3.89806,2052.3,2052.2,25.771]
[1742425934207,3.89806,2052.3,2052.2,33.52]
[1742425934792,3.89806,2052.3,2052.2,30.52]
[1742425935594,3.89806,2052.3,2052.2,33.52]
[1742425939959,4.59957939,2052.3,2052.2,3.0]
[1742425940466,5.41157939,2052.3,2052.2,3.0]
[1742425940764,3.89825,2052.2,2052.1,0.01]
[1742425940934,7.91776423,2052.2,2052.1,0.01]
[1742425945167,8.72766423,2052.2,2052.1,1e-05]
[1742425945463,10.45018259,2052.2,2052.1,1e-05]
[1742425948455,6.43066836,2052.2,2052.1,1e-05]
[1742425948655,3.89825,2052.2,2052.1,1e-05]
[1742425953733,4.68345,2052.2,2052.1,1e-05]
[1742425954980,3.89825,2052.2,2052.1,1e-05]
[1742425956667,7.91757423,2052.3,2052.1,0.75461]
[1742425956668,3.89806,2052.3,2052.1,0.75461]
[1742425956873,3.89825,2052.2,2052.1,1.130071]
[1742425957074,3.89825,2052.2,2052.1,0.75461]
[1742425962385,3.89825,2052.2,2052.1,8.50361]
[1742425962552,3.89822,2052.3,2052.1,8.50361]
[1742425962751,3.89825,2052.2,2052.1,8.50361]
[1742425963277,3.89825,2052.2,2052.1,7.74901]
[1742425966776,3.89825,2052.2,2052.1,3.00001]
[1742425970971,4.65015,2052.2,2052.1,3.00001]
[1742425971170,6.29672642,2052.2,2052.1,3.00001]
[1742425972174,5.54482642,2052.2,2052.1,3.00001]
[1742425972372,3.89825,2052.2,2052.1,3.00001]
[1742425974178,3.89822,2052.3,2052.2,3.0]
[1742425974372,3.89822,2052.3,2052.2,4.748]
[1742425974578,7.79595,2052.4,2052.2,4.748]
[1742425974952,4.01951423,2052.7,2052.2,4.748]
[1742425975158,3.89785,2052.5,2052.3,3.0]
[1742425975367,3.89787,2052.4,2052.3,3.0]
[1742425979173,3.89787,2052.4,2052.3,3.8307]
[1742425983098,3.89749,2052.6,2052.3,0.8307]
[1742425983299,7.79509,2052.6,2052.3,0.8307]
[1742425983489,3.89771,2052.5,2052.3,3.08626142]
[1742425983906,7.79555,2052.5,2052.3,3.08626142]
[1742425984213,3.89771,2052.5,2052.3,3.08626142]
[1742425984599,3.89787,2052.4,2052.3,3.08626142]
[1742425984787,3.89787,2052.4,2052.3,0.8307]
[1742425985511,3.89806,2052.3,2052.2,3.9040101]
[1742425985703,3.89806,2052.3,2052.2,8.6510101]
[1742425986007,3.89791,2052.4,2052.2,7.747]
[1742425986213,7.79589,2052.4,2052.2,7.747]
[1742425986390,3.89806,2052.3,2052.2,7.747]
[1742425986590,3.89806,2052.3,2052.2,8.71258456]
[1742425989189,3.89791,2052.4,2052.3,0.7629]
[1742425989607,3.89773,2052.5,2052.3,0.7629]
[1742425990124,3.8975,2052.6,2052.3,0.7629]
[1742425990299,3.89706,2052.9,2052.5,3.0]
[1742425990496,3.89712,2052.8,2052.7,3.0]
[1742425996527,3.89712,2052.8,2052.7,3.7746]
[1742425996734,3.89712,2052.8,2052.7,4.5912]
[1742425997795,3.89641,2053.2,2052.8,3.89709]
[1742425998025,3.89632,2053.3,2053.0,3.8166]
[1742425998224,0.7549,2053.4,2053.1,0.55]
[1742425998225,3.89598,2053.4,2053.1,0.55]
[1742425998537,3.89617,2053.3,2053.1,0.55]
[1742425998698,7.79211,2053.4,2053.1,0.55]
[1742425999031,3.8958,2053.5,2053.1,0.55]
[1742425999201,3.89603,2053.4,2053.1,0.55]
[1742425999400,3.89603,2053.4,2053.1,3.17367922]
[1742426001720,3.89616,2053.3,2053.1,9.23367922]
[1742426002029,3.89579,2053.5,2053.1,9.23367922]
[1742426002223,3.89602,2053.4,2053.1,9.23367922]
[1742426003737,7.91495423,2053.7,2053.2,3.0]
[1742426003937,3.89616,2053.3,2053.2,7.744]
[1742426006369,0.7703,2053.9,2053.2,12.57371423]
[1742426006519,3.89551,2053.7,2053.4,3.0]
[1742426006720,7.79104,2053.7,2053.5,0.8102]
[1742426007014,3.89523,2053.8,2053.6,7.744]
[1742426007537,3.8954,2053.7,2053.6,7.744]
[1742426011930,3.8954,2053.7,2053.6,8.69557717]
[1742426014358,3.8954,2053.7,2053.6,9.48547717]
[1742426014870,3.8954,2053.7,2053.6,8.69557717]
[1742426015051,3.89523,2053.8,2053.6,8.69557717]
[1742426015253,7.7906,2053.8,2053.6,9.64412489]
[1742426015450,3.89523,2053.8,2053.6,9.64412489]
[1742426016648,3.8954,2053.7,2053.6,9.64412489]
[1742426016849,3.8954,2053.7,2053.6,8.69557717]
[1742426017774,3.89527,2053.8,2053.6,8.69557717]
[1742426018873,3.8954,2053.7,2053.6,8.69557717]
[1742426019653,3.8954,2053.7,2053.6,0.95157717]
[1742426019953,3.89654,2053.1,2053.0,6.06]
[1742426020151,3.89673,2053.0,2052.9,8.291]
[1742426020461,3.89673,2053.0,2052.8,0.7644]
[1742426020462,3.89692,2052.9,2052.8,0.7644]
[1742426020668,3.89692,2052.9,2052.8,6.4783756]
[1742426020863,3.89692,2052.9,2052.8,9.4783756]
[1742426021191,3.89692,2052.9,2052.8,12.84371316]
[1742426021761,3.89692,2052.9,2052.8,0.9729756]
[1742426021969,3.89711,2052.8,2052.6,25.759]
[1742426022156,3.89711,2052.8,2052.7,7.742]
[1742426022743,3.89711,2052.8,2052.7,8.292]
[1742426023790,3.8973,2052.7,2052.6,26.72182926]
[1742426024074,3.89825,2052.2,2052.1,6.83151]
[1742426024376,3.89825,2052.2,2052.1,9.41781222]
[1742426024670,3.89825,2052.2,2052.1,10.80101]
[1742426024873,7.91776423,2052.2,2052.1,4.74101]
[1742426025076,8.70986423,2052.2,2052.1,1e-05]
[1742426025278,10.36111365,2052.2,2052.1,1e-05]
[1742426026477,14.38062788,2052.2,2052.1,1e-05]
[1742426026859,10.36111365,2052.2,2052.1,1e-05]
[1742426027558,14.38062788,2052.2,2052.1,1e-05]
[1742426027758,3.89977,2051.4,2051.3,19.74903]
[1742426027952,3.90034,2051.1,2050.9,0.7563]
[1742426028155,7.91985423,2051.1,2050.8,4.743]
[1742426028695,8.75115423,2051.1,2050.7,10.803]
[1742426028981,8.75115423,2051.1,2050.5,26.5253]
[1742426029180,8.75115423,2051.1,2050.5,31.2683]
[1742426029387,8.75115423,2051.1,2050.6,3.0]
[1742426029596,4.73164,2051.1,2050.6,3.0]
[1742426029752,6.38677342,2051.1,2050.6,3.0]
[1742426030888,6.38677342,2051.1,2050.5,31.2683]
[1742426031087,6.38677342,2051.1,2050.6,3.0]
[1742426032272,3.90034,2051.1,2050.6,3.0]
[1742426032888,3.90034,2051.1,2050.7,0.04875762]
[1742426033292,3.90034,2051.1,2050.6,3.0]
[1742426033500,3.90034,2051.1,2050.6,3.04875744]
[1742426033662,3.90034,2051.1,2050.6,3.0]
[1742426034164,3.90034,2051.1,2050.7,0.04875791]
[1742426034363,3.90034,2051.1,2050.6,3.0]
[1742426035293,3.90021,2051.2,2050.8,0.8121]
[1742426035463,3.90034,2051.1,2050.8,0.8121]
[1742426035659,3.90034,2051.1,2050.9,4.745]
[1742426037493,4.69794,2051.1,2050.9,4.745]
[1742426037707,4.69794,2051.1,2050.6,8.295]
[1742426038078,4.69794,2051.1,2051.0,3.1e-06]
[1742426038283,6.34970442,2051.1,2051.0,3.1e-06]
[1742426039600,4.69794,2051.1,2051.0,3.1e-06]
[1742426039905,3.90034,2051.1,2051.0,3.1e-06]
[1742426046091,4.65994,2051.1,2051.0,3.1e-06]
[1742426047602,3.90034,2051.1,2051.0,3.1e-06]
[1742426053992,4.67754,2051.1,2051.0,3.1e-06]
[1742426054187,6.72921585,2051.1,2051.0,3.1e-06]
[1742426056581,6.77793294,2051.1,2051.0,3.1e-06]
[1742426056782,6.77793294,2051.1,2050.2,0.45258604]
[1742426056783,4.65988,2050.5,2050.2,0.45258604]
[1742426057013,7.92137423,2050.3,2050.2,0.45258604]
[1742426057618,7.92137423,2050.3,2050.2,6.04e-06]
[1742426057914,3.90205,2050.2,2050.1,3.04e-06]
[1742426058093,4.70916709,2050.2,2050.1,3.04e-06]
[1742426058290,4.66045,2050.2,2050.1,3.04e-06]
[1742426060720,3.90205,2050.2,2050.1,3.04e-06]
[1742426061225,6.18918867,2050.2,2050.1,3.04e-06]
[1742426062521,3.90205,2050.2,2050.1,3.04e-06]
[1742426063018,3.95076709,2050.2,2050.1,3.04e-06]
[1742426063229,4.77506709,2050.2,2050.1,3.04e-06]
[1742426064289,4.72635,2050.2,2050.1,3.04e-06]
[1742426065397,3.90205,2050.2,2050.1,3.04e-06]
[1742426066288,6.59213009,2050.2,2050.1,3.04e-06]
[1742426067237,6.64084718,2050.2,2050.1,3.04e-06]
[1742426067705,7.38323009,2050.2,2050.1,3.04e-06]
[1742426067898,13.37323009,2050.2,2050.1,3.04e-06]
[1742426068228,13.90228456,2050.2,2050.1,3.04e-06]
[1742426069311,13.37323009,2050.2,2050.1,3.04e-06]
[1742426071265,9.89205,2050.2,2050.1,3.04e-06]
[1742426072348,3.90205,2050.2,2050.1,3.04e-06]
[1742426078354,4.66465,2050.2,2050.1,3.04e-06]
[1742426081436,3.90205,2050.2,2050.1,3.04e-06]
[1742426085754,3.95076709,2050.2,2050.1,3.04e-06]
[1742426087230,3.90205,2050.2,2050.1,3.04e-06]
[1742426089745,3.95076709,2050.2,2050.1,3.04e-06]
[1742426090076,6.01310964,2050.2,2050.1,3.04e-06]
[1742426090262,5.96439255,2050.2,2050.1,3.04e-06]
[1742426091781,6.01310964,2050.2,2050.1,3.04e-06]
[1742426091947,6.83800964,2050.2,2050.1,3.04e-06]
[1742426092284,6.78929255,2050.2,2050.1,3.04e-06]
[1742426093173,7.38876369,2050.2,2050.1,3.04e-06]
[1742426095775,13.37876369,2050.2,2050.1,3.04e-06]
[1742426096679,15.97390678,2050.2,2050.1,3.04e-06]
[1742426098158,13.91156423,2050.2,2050.1,3.04e-06]
[1742426100778,14.51103537,2050.2,2050.1,3.04e-06]
[1742426101450,8.52103537,2050.2,2050.1,3.04e-06]
[1742426101756,7.92156423,2050.2,2050.1,3.04e-06]
[1742426101956,8.52103537,2050.2,2050.1,3.04e-06]
[1742426102168,11.2957032,2050.2,2050.1,3.04e-06]
[1742426103587,10.69623206,2050.2,2050.1,3.04e-06]
[1742426104255,11.2957032,2050.2,2050.1,3.04e-06]
[1742426104475,12.72790192,2050.2,2050.1,3.04e-06]
[1742426105987,11.52313206,2050.2,2050.1,3.04e-06]
[1742426106888,10.69623206,2050.2,2050.1,3.04e-06]
[1742426108572,11.2957032,2050.2,2050.1,3.04e-06]
[1742426109182,12.65590192,2050.2,2050.1,3.04e-06]
[1742426112274,13.6209364,2050.2,2050.1,3.04e-06]
[1742426112702,11.66126654,2050.2,2050.1,3.04e-06]
[1742426112908,7.92156423,2050.2,2050.1,3.04e-06]
[1742426113973,3.90224,2050.1,2050.0,3.04e-06]
[1742426114175,3.95095709,2050.1,2050.0,3.04e-06]
[1742426114382,4.50171114,2050.1,2050.0,3.04e-06]
[1742426114584,6.21159468,2050.1,2050.0,3.04e-06]
[1742426114974,6.8168934,2050.1,2050.0,3.04e-06]